fUST/lending_fUST_20250603
["ID","MTS","AMOUNT","RATE_DAILY","PERIOD"]
[363927570,1748932241681,-440.0,0.00019726,2]
[363927571,1748932241691,-1518.8,0.00019726,2]
[363927572,1748932241701,-440.0,0.00019726,2]
[363927573,1748932241710,-885.58,0.00019726,2]
[363927574,1748932241720,-543.28,0.00019726,2]
[363927575,1748932241730,-440.0,0.00019726,2]
[363927576,1748932241740,-448.91,0.00019726,2]
[363927577,1748932241750,-516.37,0.00019726,2]
[363927578,1748932241760,-615.64,0.00019726,2]
[363927579,1748932241774,-440.0,0.00019726,2]
[363927580,1748932241784,-365.71,0.00019726,2]
[363927581,1748932241795,-612.72825677,0.0001979,2]
[363927582,1748932241836,-1849.24974425,0.00019797,2]
[363927583,1748932241846,-375.86446477,0.00019797,2]
[363927584,1748932241858,-779.34,0.00019799,2]
[363927585,1748932241869,-1000.0,0.000198,2]
[363927586,1748932241879,-1000.0,0.000198,3]
[363927587,1748932241888,-800.0,0.000198,2]
[363927588,1748932241897,-7639.0734438,0.00019873,2]
[363927589,1748932241906,-1612.95996421,0.000199,2]
[363927590,1748932241916,-700.0,0.00019964,2]
[363927591,1748932241926,-779.34,0.00019972,2]
[363927592,1748932241936,-500.38731581,0.00019973,2]
[363927593,1748932241946,-188.0,0.0001999,2]
[363927594,1748932241956,-188.0,0.0001999,2]
[363927595,1748932241966,-188.0,0.0001999,2]
[363927596,1748932241976,-14857.81764852,0.0001999,2]
[363927597,1748932241987,-188.0,0.0001999,3]
[363927598,1748932241997,-188.0,0.0001999,3]
[363927599,1748932242007,-188.0,0.0001999,3]
[363927600,1748932242016,-188.0,0.0001999,3]
[363927601,1748932242025,-188.0,0.0001999,2]
[363927602,1748932242035,-187.05243447,0.0001999,2]
[363927603,1748932242046,-32205.71513533,0.00019997,2]
[363927604,1748932242056,-779.34,0.00019999,2]
[363927605,1748932242065,-779.34,0.00019999,2]
[363927606,1748932242075,-779.34,0.00019999,2]
[363927607,1748932242086,-779.34,0.00019999,2]
[363927608,1748932242097,-779.34,0.00019999,2]
[363927609,1748932242107,-779.34,0.00019999,2]
[363927610,1748932242117,-779.34,0.00019999,2]
[363927611,1748932242127,-779.34,0.00019999,2]
[363927612,1748932242136,-779.44,0.00019999,2]
[363927613,1748932242146,-517.90382593,0.00019999,2]
[363927614,1748932242156,-500.0,0.00019999,2]
[363927615,1748932242166,-550.0,0.00019999,2]
[363927616,1748932242176,-12127.55565132,0.0002,2]
[363927617,1748932242186,-4097.35445668,0.0002,3]
[363927618,1748932242196,-79414.42699898,0.0002,2]
[363927619,1748932242309,-292.7075,0.0002,2]
[363927620,1748932242321,-20153.59664527,0.0002,2]
[363927621,1748932242365,-376.1391984,0.0002,2]
[363927622,1748932242376,-1136.60257934,0.0002,2]
[363927623,1748932242388,-800.0,0.0002,2]
[363927624,1748932242400,-1112.81194444,0.0002,2]
[363927637,1748932243796,-440.0,0.00016438,2]
[363927638,1748932243807,-319.6234179,0.00016712,2]
[363927639,1748932243817,-1435.04400683,0.0002,2]
[363927640,1748932243828,-20413.62060798,0.0002,2]
[363927656,1748932434852,157.506949,0.00013699,2]
[363927658,1748932696121,21092.7325738,0.00015453,2]
[363927659,1748932704452,4358.4529988,0.00015453,2]
[363927661,1748933211310,-202.24246841,0.00016428,3]
[363927664,1748933412348,157.506949,0.00013699,2]
[363927665,1748933412639,-202.24246841,0.00016102,2]
[363927690,1748933431906,-200.68753159,0.00016428,3]
[363927691,1748933431917,-201.47,0.00016428,3]
[363927692,1748933431927,-604.42,0.00016428,3]
[363927693,1748933431937,-202.24,0.00016428,3]
[363927694,1748933431947,-160.0,0.00016428,2]
[363927695,1748933431957,-300.0,0.00016432,2]
[363927696,1748933431967,-1200.0,0.00016432,2]
[363927697,1748933431977,-3209.19082922,0.00016433,2]
[363927698,1748933431989,-605.45,0.00016433,2]
[363927702,1748933432214,-7055.96194088,0.00016433,2]
[363927704,1748933432226,-481.84569023,0.00016433,2]
[363927731,1748933440417,-500.0,0.00016432,2]
[363927732,1748933440427,-500.0,0.00016432,2]
[363927733,1748933440437,-500.0,0.00016432,2]
[363927734,1748933440448,-500.0,0.00016432,2]
[363927735,1748933440594,-500.0,0.00016432,2]
[363927736,1748933440605,-353.31855793,0.00016432,2]
[363927737,1748933440615,-500.0,0.00016432,2]
[363927738,1748933440625,-500.0,0.00016432,2]
[363927739,1748933440638,-500.0,0.00016432,2]
[363927740,1748933440648,-500.0,0.00016432,2]
[363927741,1748933440659,-500.0,0.00016432,2]
[363927742,1748933440668,-500.0,0.00016432,2]
[363927743,1748933440679,-555.08620139,0.00016432,2]
[363927744,1748933440688,-500.0,0.00016432,2]
[363927745,1748933440699,-500.0,0.00016432,2]
[363927746,1748933440708,-500.0,0.00016432,2]
[363927747,1748933440718,-500.0,0.00016432,2]
[363927748,1748933440727,-500.0,0.00016432,2]
[363927749,1748933440737,-500.0,0.00016432,2]
[363927750,1748933440747,-500.0,0.00016432,2]
[363927751,1748933440757,-500.0,0.00016432,2]
[363927752,1748933440769,-500.0,0.00016432,2]
[363927753,1748933440778,-159.85861611,0.00016432,2]
[363927754,1748933440789,-500.0,0.00016432,2]
[363927755,1748933440798,-500.0,0.00016432,2]
[363927756,1748933440808,-500.0,0.00016432,2]
[363927757,1748933440817,-500.0,0.00016432,2]
[363927758,1748933440827,-500.0,0.00016432,2]
[363927759,1748933440836,-500.0,0.00016432,2]
[363927760,1748933440846,-500.0,0.00016432,2]
[363927761,1748933440856,-500.0,0.00016432,2]
[363927762,1748933440865,-500.0,0.00016432,2]
[363927763,1748933440876,-500.0,0.00016432,2]
[363927764,1748933440888,-38647.55153967,0.00016433,2]
[363927765,1748933440898,-490.75609032,0.00016438,2]
[363927766,1748933440907,-430.0,0.00016438,2]
[363927767,1748933440917,-440.0,0.00016438,2]
[363927768,1748933440926,-440.0,0.00016438,2]
[363927769,1748933440936,-440.0,0.00016438,2]
[363927770,1748933440946,-440.0,0.00016438,2]
[363927771,1748933440956,-440.0,0.00016438,2]
[363927772,1748933440966,-430.0,0.00016438,2]
[363927773,1748933440975,-430.0,0.00016438,2]
[363927774,1748933440985,-430.0,0.00016438,2]
[363927775,1748933440995,-430.0,0.00016438,2]
[363927776,1748933441005,-430.0,0.00016438,2]
[363927777,1748933441014,-430.0,0.00016438,2]
[363927778,1748933441024,-440.0,0.00016438,2]
[363927779,1748933441033,-440.0,0.00016438,2]
[363927780,1748933441043,-440.0,0.00016438,2]
[363927781,1748933441053,-440.0,0.00016438,2]
[363927782,1748933441063,-420.0,0.00016438,2]
[363927783,1748933441073,-430.0,0.00016438,2]
[363927784,1748933441083,-430.0,0.00016438,2]
[363927785,1748933441093,-440.0,0.00016438,2]
[363927786,1748933441103,-440.0,0.00016438,2]
[363927787,1748933441112,-440.0,0.00016438,2]
[363927788,1748933441122,-430.0,0.00016438,2]
[363927789,1748933441133,-430.0,0.00016438,2]
[363927790,1748933441143,-430.0,0.00016438,2]
[363927791,1748933441153,-366.49554212,0.00016438,2]
[363927792,1748933441163,-405.76938968,0.00016438,2]
[363927793,1748933441172,-418.92275974,0.00016438,2]
[363927794,1748933441182,-440.0,0.00016438,2]
[363927795,1748933441192,-445.798385,0.00016438,2]
[363927796,1748933441201,-396.07061691,0.00016438,2]
[363927797,1748933441211,-440.0,0.00016438,2]
[363927798,1748933441221,-440.0,0.00016438,2]
[363927799,1748933441232,-211.17063852,0.00016438,2]
[363927800,1748933441242,-440.0,0.00016438,2]
[363927801,1748933441252,-500.0,0.00016438,2]
[363927802,1748933441262,-500.0,0.00016438,2]
[363927803,1748933441273,-500.0,0.00016438,2]
[363927804,1748933441283,-500.0,0.00016438,2]
[363927805,1748933441293,-500.0,0.00016438,2]
[363927806,1748933441303,-500.0,0.00016438,2]
[363927807,1748933441315,-440.0,0.00016438,2]
[363927808,1748933441325,-440.0,0.00016438,2]
[363927809,1748933441335,-440.0,0.00016438,2]
[363927810,1748933441345,-440.0,0.00016438,2]
[363927811,1748933441355,-480.0,0.00016438,2]
[363927812,1748933441366,-440.0,0.00016438,2]
[363927813,1748933441376,-324.63575684,0.00016438,2]
[363927814,1748933441386,-440.0,0.00016438,2]
[363927815,1748933441396,-430.0,0.00016438,2]
[363927816,1748933441406,-440.0,0.00016438,2]
[363927817,1748933441416,-440.0,0.00016438,2]
[363927818,1748933441426,-520.78,0.00016438,2]
[363927819,1748933441435,-430.0,0.00016438,2]
[363927820,1748933441445,-430.0,0.00016438,2]
[363927821,1748933441455,-440.0,0.00016438,2]
[363927822,1748933441465,-430.0,0.00016438,2]
[363927823,1748933441475,-440.0,0.00016438,2]
[363927824,1748933441485,-420.0,0.00016438,2]
[363927825,1748933441495,-500.0,0.00016438,2]
[363927826,1748933441505,-500.0,0.00016438,2]
[363927827,1748933441515,-500.0,0.00016438,2]
[363927828,1748933441525,-500.0,0.00016438,2]
[363927829,1748933441535,-500.0,0.00016438,2]
[363927830,1748933441544,-500.0,0.00016438,2]
[363927831,1748933441554,-430.0,0.00016438,2]
[363927832,1748933441563,-440.0,0.00016438,2]
[363927833,1748933441574,-440.0,0.00016438,2]
[363927834,1748933441583,-431.78709245,0.00016438,2]
[363927835,1748933441593,-440.0,0.00016438,2]
[363927836,1748933441602,-500.0,0.00016438,2]
[363927837,1748933441612,-500.0,0.00016438,2]
[363927838,1748933441622,-500.0,0.00016438,2]
[363927839,1748933441633,-500.0,0.00016438,2]
[363927840,1748933441643,-500.0,0.00016438,2]
[363927841,1748933441653,-430.0,0.00016438,2]
[363927842,1748933441662,-440.0,0.00016438,2]
[363927843,1748933441672,-440.0,0.00016438,2]
[363927844,1748933441683,-430.0,0.00016438,2]
[363927845,1748933441692,-440.0,0.00016438,2]
[363927846,1748933441702,-440.0,0.00016438,2]
[363927847,1748933441712,-420.0,0.00016438,2]
[363927848,1748933441721,-430.0,0.00016438,2]
[363927849,1748933441731,-430.0,0.00016438,2]
[363927850,1748933441741,-430.0,0.00016438,2]
[363927851,1748933441751,-430.0,0.00016438,2]
[363927852,1748933441761,-430.0,0.00016438,2]
[363927853,1748933441771,-430.0,0.00016438,2]
[363927854,1748933441780,-440.0,0.00016438,2]
[363927855,1748933441790,-440.0,0.00016438,2]
[363927856,1748933441800,-430.0,0.00016438,2]
[363927857,1748933441810,-440.0,0.00016438,2]
[363927858,1748933441819,-440.0,0.00016438,2]
[363927859,1748933441829,-430.0,0.00016438,2]
[363927860,1748933441839,-440.0,0.00016438,2]
[363927861,1748933441849,-440.0,0.00016438,2]
[363927862,1748933441859,-430.0,0.00016438,2]
[363927863,1748933441868,-440.0,0.00016438,2]
[363927864,1748933441878,-430.0,0.00016438,2]
[363927865,1748933441889,-430.0,0.00016438,2]
[363927866,1748933441898,-296.36394459,0.00016438,2]
[363927867,1748933441908,-440.0,0.00016438,2]
[363927868,1748933441917,-554.7,0.00016438,2]
[363927869,1748933441927,-176.98459333,0.00016438,2]
[363927870,1748933441937,-430.0,0.00016438,2]
[363927871,1748933441947,-514.57626875,0.00016438,2]
[363927872,1748933441957,-440.0,0.00016438,2]
[363927873,1748933441967,-440.0,0.00016438,2]
[363927874,1748933441976,-440.0,0.00016438,2]
[363927875,1748933441986,-440.0,0.00016438,2]
[363927876,1748933441995,-430.0,0.00016438,2]
[363927877,1748933442005,-440.0,0.00016438,2]
[363927878,1748933442014,-206.78080013,0.00016438,2]
[363927879,1748933442024,-430.0,0.00016438,2]
[363927880,1748933442034,-440.0,0.00016438,2]
[363927881,1748933442044,-440.0,0.00016438,2]
[363927882,1748933442054,-440.0,0.00016438,2]
[363927883,1748933442064,-430.0,0.00016438,2]
[363927884,1748933442073,-434.33109774,0.00016438,2]
[363927885,1748933442083,-430.0,0.00016438,2]
[363927886,1748933442093,-430.0,0.00016438,2]
[363927887,1748933442103,-440.0,0.00016438,2]
[363927888,1748933442113,-430.0,0.00016438,2]
[363927889,1748933442123,-440.0,0.00016438,2]
[363927890,1748933442133,-440.0,0.00016438,2]
[363927891,1748933442145,-440.0,0.00016438,2]
[363927892,1748933442155,-430.0,0.00016438,2]
[363927893,1748933442165,-440.0,0.00016438,2]
[363927894,1748933442174,-430.0,0.00016438,2]
[363927895,1748933442184,-430.0,0.00016438,2]
[363927896,1748933442194,-440.0,0.00016438,2]
[363927897,1748933442204,-440.0,0.00016438,2]
[363927898,1748933442215,-430.0,0.00016438,2]
[363927899,1748933442225,-446.07446011,0.00016438,2]
[363927900,1748933442235,-432.17771895,0.00016438,2]
[363927901,1748933442246,-440.0,0.00016438,2]
[363927902,1748933442256,-440.0,0.00016438,2]
[363927903,1748933442266,-430.0,0.00016438,2]
[363927904,1748933442276,-432.85065629,0.00016438,2]
[363927905,1748933442286,-440.0,0.00016438,2]
[363927906,1748933442296,-1422.91,0.00016438,2]
[363927907,1748933442306,-1957.17,0.00016438,2]
[363927909,1748933442320,-430.0,0.00016438,2]
[363927911,1748933442330,-420.0,0.00016438,2]
[363927913,1748933442340,-440.0,0.00016438,2]
[363927914,1748933442350,-440.0,0.00016438,2]
[363927915,1748933442361,-430.0,0.00016438,2]
[363927916,1748933442372,-255.40745137,0.00016438,2]
[363927917,1748933442383,-430.0,0.00016438,2]
[363927918,1748933442395,-440.0,0.00016438,2]
[363927919,1748933442406,-440.0,0.00016438,2]
[363927920,1748933442428,-440.0,0.00016438,2]
[363927921,1748933442438,-440.0,0.00016438,2]
[363927922,1748933442448,-430.0,0.00016438,2]
[363927923,1748933442458,-436.48462691,0.00016438,2]
[363927925,1748933442469,-430.0,0.00016438,2]
[363927926,1748933442480,-440.0,0.00016438,2]
[363927927,1748933442490,-440.0,0.00016438,2]
[363927928,1748933442500,-440.0,0.00016438,2]
[363927929,1748933442510,-430.0,0.00016438,2]
[363927930,1748933442520,-440.0,0.00016438,2]
[363927932,1748933442530,-430.0,0.00016438,2]
[363927934,1748933442540,-440.0,0.00016438,2]
[363927935,1748933442550,-440.0,0.00016438,2]
[363927937,1748933442560,-452.07899713,0.00016438,2]
[363927939,1748933442570,-430.0,0.00016438,2]
[363927941,1748933442580,-886.05,0.00016438,2]
[363927943,1748933442589,-430.0,0.00016438,2]
[363927945,1748933442599,-430.0,0.00016438,2]
[363927947,1748933442608,-440.0,0.00016438,2]
[363927949,1748933442617,-440.0,0.00016438,2]
[363927951,1748933442627,-440.0,0.00016438,2]
[363927953,1748933442637,-440.0,0.00016438,2]
[363927955,1748933442646,-440.0,0.00016438,2]
[363927957,1748933442656,-430.0,0.00016438,2]
[363927959,1748933442666,-430.0,0.00016438,2]
[363927961,1748933442676,-440.0,0.00016438,2]
[363927963,1748933442686,-440.0,0.00016438,2]
[363927965,1748933442696,-430.0,0.00016438,2]
[363927967,1748933442706,-430.0,0.00016438,2]
[363927969,1748933442715,-443.48108674,0.00016438,2]
[363927971,1748933442725,-420.0,0.00016438,2]
[363927973,1748933442734,-430.84067323,0.00016438,2]
[363927975,1748933442744,-440.0,0.00016438,2]
[363927977,1748933442754,-440.0,0.00016438,2]
[363927979,1748933442764,-440.0,0.00016438,2]
[363927981,1748933442774,-430.0,0.00016438,2]
[363927983,1748933442784,-440.0,0.00016438,2]
[363927985,1748933442794,-440.0,0.00016438,2]
[363927987,1748933442804,-430.0,0.00016438,2]
[363927989,1748933442814,-1471.23,0.00016438,2]
[363927991,1748933442824,-430.0,0.00016438,2]
[363927993,1748933442834,-440.0,0.00016438,2]
[363927995,1748933442845,-1388.48,0.00016438,2]
[363927997,1748933442854,-1388.48,0.00016438,2]
[363927999,1748933442864,-1388.48,0.00016438,2]
[363928001,1748933442874,-1388.48,0.00016438,2]
[363928003,1748933442885,-1388.48,0.00016438,2]
[363928005,1748933442896,-1388.48,0.00016438,2]
[363928007,1748933442906,-440.0,0.00016438,2]
[363928009,1748933442916,-440.0,0.00016438,2]
[363928011,1748933442926,-430.0,0.00016438,2]
[363928013,1748933442936,-430.0,0.00016438,2]
[363928015,1748933442946,-430.0,0.00016438,2]
[363928017,1748933442956,-654.81,0.00016438,2]
[363928019,1748933442966,-2390.55,0.00016438,2]
[363928021,1748933442976,-2074.06,0.00016438,2]
[363928024,1748933442986,-2284.02,0.00016438,2]
[363928027,1748933442996,-440.0,0.00016438,2]
[363928029,1748933443007,-430.0,0.00016438,2]
[363928032,1748933443017,-440.0,0.00016438,2]
[363928035,1748933443027,-440.0,0.00016438,2]
[363928037,1748933443037,-2371.77,0.00016438,2]
[363928039,1748933443047,-437.64617155,0.00016438,2]
[363928041,1748933443057,-440.0,0.00016438,2]
[363928044,1748933443068,-440.0,0.00016438,2]
[363928046,1748933443078,-420.0,0.00016438,2]
[363928048,1748933443088,-444.39570845,0.00016438,2]
[363928050,1748933443097,-430.0,0.00016438,2]
[363928052,1748933443107,-430.0,0.00016438,2]
[363928054,1748933443117,-440.0,0.00016438,2]
[363928056,1748933443127,-521.81,0.00016438,2]
[363928058,1748933443138,-468.91,0.00016438,2]
[363928060,1748933443148,-430.0,0.00016438,2]
[363928062,1748933443158,-484.71,0.00016438,2]
[363928064,1748933443168,-438.5435573,0.00016438,2]
[363928066,1748933443178,-440.0,0.00016438,2]
[363928068,1748933443189,-440.0,0.00016438,2]
[363928070,1748933443199,-440.0,0.00016438,2]
[363928072,1748933443209,-453.80888928,0.00016438,2]
[363928074,1748933443220,-367.69743656,0.00016438,2]
[363928076,1748933443231,-430.0,0.00016438,2]
[363928078,1748933443240,-485.9,0.00016438,2]
[363928080,1748933443250,-430.0,0.00016438,2]
[363928082,1748933443260,-430.0,0.00016438,2]
[363928084,1748933443270,-440.0,0.00016438,2]
[363928086,1748933443280,-970.29,0.00016438,2]
[363928088,1748933443290,-420.0,0.00016438,2]
[363928090,1748933443301,-430.0,0.00016438,2]
[363928092,1748933443312,-440.0,0.00016438,2]
[363928094,1748933443324,-440.0,0.00016438,2]
[363928096,1748933443335,-430.0,0.00016438,2]
[363928098,1748933443345,-440.0,0.00016438,2]
[363928100,1748933443354,-440.0,0.00016438,2]
[363928101,1748933443365,-440.0,0.00016438,2]
[363928102,1748933443375,-420.0,0.00016438,2]
[363928103,1748933443385,-480.85504194,0.00016438,2]
[363928104,1748933443394,-1039.91,0.00016438,2]
[363928105,1748933443405,-440.0,0.00016438,2]
[363928106,1748933443415,-440.0,0.00016438,2]
[363928107,1748933443426,-431.00692936,0.00016438,2]
[363928109,1748933443436,-420.0,0.00016438,2]
[363928111,1748933443447,-440.0,0.00016438,2]
[363928113,1748933443456,-940.37,0.00016438,2]
[363928115,1748933443466,-440.0,0.00016438,2]
[363928117,1748933443477,-440.0,0.00016438,2]
[363928119,1748933443487,-430.0,0.00016438,2]
[363928121,1748933443497,-440.0,0.00016438,2]
[363928123,1748933443507,-440.0,0.00016438,2]
[363928125,1748933443516,-264.17758372,0.00016438,2]
[363928127,1748933443526,-440.0,0.00016438,2]
[363928129,1748933443537,-440.0,0.00016438,2]
[363928146,1748933443689,-504.59918932,0.00016438,2]
[363928149,1748933443699,-431.15539361,0.00016438,2]
[363928151,1748933443710,-805.93,0.00016438,2]
[363928153,1748933443719,-431.28715072,0.00016438,2]
[363928155,1748933443729,-440.0,0.00016438,2]
[363928157,1748933443739,-490.0,0.00016438,2]
[363928159,1748933443749,-430.0,0.00016438,2]
[363928161,1748933443758,-431.4091847,0.00016438,2]
[363928162,1748933443768,-430.0,0.00016438,2]
[363928164,1748933443778,-1096.13,0.00016438,2]
[363928166,1748933443788,-440.0,0.00016438,2]
[363928167,1748933443799,-440.0,0.00016438,2]
[363928168,1748933443809,-430.0,0.00016438,2]
[363928169,1748933443819,-440.0,0.00016438,2]
[363928170,1748933443829,-454.51971857,0.00016438,2]
[363928171,1748933443838,-440.0,0.00016438,2]
[363928172,1748933443848,-440.0,0.00016438,2]
[363928173,1748933443857,-453.12294541,0.00016438,2]
[363928174,1748933443867,-440.0,0.00016438,2]
[363928175,1748933443876,-385.74013933,0.00016438,2]
[363928176,1748933443886,-440.0,0.00016438,2]
[363928177,1748933443895,-519.02725028,0.00016438,2]
[363928178,1748933443905,-490.0,0.00016438,2]
[363928179,1748933443915,-430.0,0.00016438,2]
[363928180,1748933443925,-430.45842253,0.00016438,2]
[363928181,1748933443934,-483.11435397,0.00016438,2]
[363928182,1748933443944,-440.0,0.00016438,2]
[363928183,1748933443953,-440.0,0.00016438,2]
[363928184,1748933443963,-430.0,0.00016438,2]
[363928185,1748933443972,-440.0,0.00016438,2]
[363928186,1748933443982,-430.0,0.00016438,2]
[363928187,1748933443991,-813.99,0.00016438,2]
[363928188,1748933444001,-470.23,0.00016438,2]
[363928189,1748933444010,-430.0,0.00016438,2]
[363928190,1748933444020,-426.95083179,0.00016438,2]
[363928191,1748933444029,-430.0,0.00016438,2]
[363928192,1748933444039,-440.0,0.00016438,2]
[363928193,1748933444048,-384.27329561,0.00016438,2]
[363928194,1748933444058,-440.0,0.00016438,2]
[363928195,1748933444067,-430.0,0.00016438,2]
[363928196,1748933444077,-440.0,0.00016438,2]
[363928197,1748933444086,-440.31991101,0.00016438,2]
[363928198,1748933444096,-494.70773844,0.00016438,2]
[363928199,1748933444106,-440.0,0.00016438,2]
[363928200,1748933444116,-440.0,0.00016438,2]
[363928201,1748933444125,-430.0,0.00016438,2]
[363928202,1748933444135,-440.0,0.00016438,2]
[363928203,1748933444145,-440.0,0.00016438,2]
[363928204,1748933444155,-430.0,0.00016438,2]
[363928205,1748933444164,-430.0,0.00016438,2]
[363928206,1748933444174,-177.79823368,0.00016438,2]
[363928207,1748933444184,-255.0,0.000165,2]
[363928208,1748933444194,-255.0,0.00016501,2]
[363928209,1748933444203,-255.0,0.00016502,2]
[363928210,1748933444213,-255.0,0.00016503,2]
[363928211,1748933444223,-255.0,0.00016504,2]
[363928212,1748933444233,-255.0,0.00016505,2]
[363928213,1748933444242,-255.0,0.00016506,2]
[363928214,1748933444252,-255.0,0.00016507,2]
[363928215,1748933444262,-255.0,0.00016508,2]
[363928216,1748933444272,-255.0,0.00016509,2]
[363928217,1748933444282,-255.0,0.0001651,2]
[363928218,1748933444292,-255.0,0.00016511,2]
[363928219,1748933444301,-255.0,0.00016512,2]
[363928220,1748933444311,-255.0,0.00016513,2]
[363928221,1748933444326,-255.86811144,0.00016514,2]
[363928222,1748933444335,-4520.66680074,0.00016611,2]
[363928223,1748933444345,-3760.6,0.00016711,2]
[363928224,1748933444355,-500.0,0.00016711,2]
[363928225,1748933444366,-500.0,0.00016711,2]
[363928226,1748933444376,-500.0,0.00016711,2]
[363928227,1748933444385,-500.0,0.00016711,2]
[363928228,1748933444397,-500.0,0.00016711,2]
[363928229,1748933444407,-1388.48,0.00016711,2]
[363928230,1748933444417,-1388.48,0.00016711,2]
[363928231,1748933444428,-420.0,0.00016712,2]
[363928232,1748933444437,-420.0,0.00016712,2]
[363928233,1748933444447,-420.0,0.00016712,2]
[363928234,1748933444457,-440.0,0.00016712,2]
[363928235,1748933444466,-440.0,0.00016712,2]
[363928236,1748933444476,-440.0,0.00016712,2]
[363928237,1748933444485,-440.0,0.00016712,2]
[363928238,1748933444495,-440.0,0.00016712,2]
[363928239,1748933444505,-440.0,0.00016712,2]
[363928240,1748933444515,-440.0,0.00016712,2]
[363928241,1748933444524,-440.0,0.00016712,2]
[363928242,1748933444534,-440.0,0.00016712,2]
[363928243,1748933444543,-430.0,0.00016712,2]
[363928244,1748933444553,-440.0,0.00016712,2]
[363928245,1748933444562,-440.0,0.00016712,2]
[363928246,1748933444572,-420.0,0.00016712,2]
[363928247,1748933444582,-408.3243254,0.00016712,2]
[363928248,1748933444591,-410.0,0.00016712,2]
[363928249,1748933444600,-440.0,0.00016712,2]
[363928250,1748933444610,-380.0,0.00016712,2]
[363928251,1748933444619,-440.0,0.00016712,2]
[363928252,1748933444629,-440.0,0.00016712,2]
[363928253,1748933444639,-440.0,0.00016712,2]
[363928254,1748933444648,-420.54111973,0.00016712,2]
[363928255,1748933444658,-440.0,0.00016712,2]
[363928256,1748933444667,-420.0,0.00016712,2]
[363928257,1748933444677,-420.0,0.00016712,2]
[363928258,1748933444686,-440.0,0.00016712,2]
[363928259,1748933444695,-440.0,0.00016712,2]
[363928260,1748933444705,-440.0,0.00016712,2]
[363928261,1748933444714,-440.0,0.00016712,2]
[363928262,1748933444724,-440.0,0.00016712,2]
[363928263,1748933444733,-410.0,0.00016712,2]
[363928264,1748933444743,-422.12966265,0.00016712,2]
[363928265,1748933444753,-440.0,0.00016712,2]
[363928266,1748933444763,-435.55280609,0.00016712,2]
[363928267,1748933444772,-440.0,0.00016712,2]
[363928268,1748933444782,-440.0,0.00016712,2]
[363928269,1748933444791,-554.7,0.00016712,2]
[363928270,1748933444801,-420.0,0.00016712,2]
[363928271,1748933444811,-420.0,0.00016712,2]
[363928272,1748933444820,-410.0,0.00016712,2]
[363928273,1748933444829,-440.0,0.00016712,2]
[363928274,1748933444840,-495.72,0.00016712,2]
[363928275,1748933444849,-424.20911019,0.00016712,2]
[363928276,1748933444859,-440.0,0.00016712,2]
[363928277,1748933444868,-440.0,0.00016712,2]
[363928278,1748933444878,-440.0,0.00016712,2]
[363928279,1748933444888,-440.0,0.00016712,2]
[363928280,1748933444898,-440.0,0.00016712,2]
[363928281,1748933444908,-440.0,0.00016712,2]
[363928282,1748933444917,-330.54967705,0.00016712,2]